[Event "Early-Titled-Tuesday-Blitz-May-07-2024"]
[Site "Chess.com"]
[Date "2024.05.07"]
[Round "2"]
[White "praveenb2002"]
[Black "guillembaches"]
[Result "1-0"]
[WhiteElo "2858"]
[BlackElo "2581"]
[TimeControl "180+1"]
[EndTime "8:18:17 PDT"]
[Termination "praveenb2002 won on time"]

1. c4 {[%clk 0:03:00.9]} 1... e6 {[%clk 0:02:59.8]} 2. Nc3 {[%clk 0:02:58.4]}
2... d5 {[%clk 0:03:00.2]} 3. d4 {[%clk 0:02:56.9]} 3... a6 {[%clk 0:03:00.3]}
4. cxd5 {[%clk 0:02:52.2]} 4... exd5 {[%clk 0:03:01.2]} 5. Bf4 {[%clk
0:02:50.4]} 5... Nf6 {[%clk 0:03:01]} 6. e3 {[%clk 0:02:49.3]} 6... c5 {[%clk
0:02:59.7]} 7. Nf3 {[%clk 0:02:45.4]} 7... c4 {[%clk 0:02:59.6]} 8. Ne5 {[%clk
0:02:45.1]} 8... b5 {[%clk 0:02:58]} 9. g4 {[%clk 0:02:40.4]} 9... Bb7 {[%clk
0:02:50.3]} 10. g5 {[%clk 0:02:38.6]} 10... Ne4 {[%clk 0:02:50.1]} 11. Nxe4
{[%clk 0:02:38.2]} 11... dxe4 {[%clk 0:02:50.3]} 12. Bh3 {[%clk 0:02:35.1]}
12... Bb4+ {[%clk 0:02:41.1]} 13. Kf1 {[%clk 0:02:35]} 13... Bd5 {[%clk
0:02:31.9]} 14. Rg1 {[%clk 0:02:25.6]} 14... O-O {[%clk 0:02:20.4]} 15. a4
{[%clk 0:02:25.3]} 15... Nc6 {[%clk 0:01:50.2]} 16. Nd7 {[%clk 0:02:12.4]} 16...
Re8 {[%clk 0:01:38.9]} 17. axb5 {[%clk 0:01:56.9]} 17... axb5 {[%clk 0:01:36.4]}
18. Rxa8 {[%clk 0:01:57.8]} 18... Qxa8 {[%clk 0:01:36.2]} 19. Nf6+ {[%clk
0:01:45.2]} 19... gxf6 {[%clk 0:01:17.9]} 20. gxf6+ {[%clk 0:01:46.1]} 20... Kh8
{[%clk 0:01:18.2]} 21. Rg7 {[%clk 0:01:25]} 21... Bf8 {[%clk 0:00:10.7]} 22. Qg4
{[%clk 0:01:19.8]} 1-0

[Event "Early-Titled-Tuesday-Blitz-May-07-2024"]
[Site "Chess.com"]
[Date "2024.05.07"]
[Round "2"]
[White "akanga001"]
[Black "lcmil"]
[Result "0-1"]
[WhiteElo "2162"]
[BlackElo "2464"]
[TimeControl "180+1"]
[EndTime "8:18:17 PDT"]
[Termination "lcmil won by resignation"]

1. d4 {[%clk 0:03:00.9]} 1... Nf6 {[%clk 0:02:59.7]} 2. Nf3 {[%clk 0:03:00.7]}
2... g6 {[%clk 0:03:00.1]} 3. Bg5 {[%clk 0:02:58.4]} 3... Bg7 {[%clk 0:02:59.4]}
4. e3 {[%clk 0:02:57.8]} 4... Ne4 {[%clk 0:02:57.9]} 5. Bf4 {[%clk 0:02:56.6]}
5... c5 {[%clk 0:02:58.5]} 6. c3 {[%clk 0:02:55]} 6... Qb6 {[%clk 0:02:57.9]} 7.
Qc1 {[%clk 0:02:52.4]} 7... d5 {[%clk 0:02:54.7]} 8. Nbd2 {[%clk 0:02:51.4]}
8... Bf5 {[%clk 0:02:50.5]} 9. a4 {[%clk 0:02:50.5]} 9... Nc6 {[%clk 0:02:47.3]}
10. Be2 {[%clk 0:02:41]} 10... cxd4 {[%clk 0:02:44.9]} 11. exd4 {[%clk 0:02:40]}
11... Rc8 {[%clk 0:02:43.4]} 12. Bb5 {[%clk 0:02:23.3]} 12... O-O {[%clk
0:02:37.8]} 13. Bxc6 {[%clk 0:02:22.9]} 13... Rxc6 {[%clk 0:02:37.9]} 14. O-O
{[%clk 0:02:22.6]} 14... a5 {[%clk 0:02:29.9]} 15. Ne5 {[%clk 0:02:17.6]} 15...
Rcc8 {[%clk 0:02:11.2]} 16. Nxe4 {[%clk 0:02:08.1]} 16... dxe4 {[%clk
0:02:04.7]} 17. Qd2 {[%clk 0:01:44.7]} 17... Rfd8 {[%clk 0:01:59.1]} 18. g4
{[%clk 0:01:38.5]} 18... Be6 {[%clk 0:01:47.7]} 19. h3 {[%clk 0:01:31.5]} 19...
f6 {[%clk 0:01:47.4]} 20. Be3 {[%clk 0:01:24.4]} 20... fxe5 {[%clk 0:01:46.4]}
21. dxe5 {[%clk 0:01:24.1]} 21... Rxd2 {[%clk 0:01:45.3]} 22. Bxb6 {[%clk
0:01:21.9]} 22... Rxb2 {[%clk 0:01:45.8]} 23. Bxa5 {[%clk 0:01:17.5]} 23... Bxe5
{[%clk 0:01:42.4]} 24. Bb4 {[%clk 0:01:16.3]} 24... Bxc3 {[%clk 0:01:38.3]} 25.
Bxe7 {[%clk 0:01:15.4]} 25... e3 {[%clk 0:01:26]} 26. Bh4 {[%clk 0:00:59.6]}
26... e2 {[%clk 0:01:24.2]} 27. Rfc1 {[%clk 0:00:57.7]} 27... Rd2 {[%clk
0:01:15.6]} 28. f4 {[%clk 0:00:56.9]} 28... Bd4+ {[%clk 0:01:10.7]} 29. Bf2
{[%clk 0:00:55.5]} 29... Rxc1+ {[%clk 0:01:02.7]} 30. Rxc1 {[%clk 0:00:49.5]}
30... Rd1+ {[%clk 0:01:03.6]} 31. Kg2 {[%clk 0:00:42.9]} 31... Bd5+ {[%clk
0:01:03.3]} 0-1

[Event "Early-Titled-Tuesday-Blitz-May-07-2024"]
[Site "Chess.com"]
[Date "2024.05.07"]
[Round "2"]
[White "Boxerandchessplayer"]
[Black "ubdip"]
[Result "0-1"]
[WhiteElo "2230"]
[BlackElo "2491"]
[TimeControl "180+1"]
[EndTime "8:18:23 PDT"]
[Termination "ubdip won by resignation"]

1. d4 {[%clk 0:03:00.9]} 1... d5 {[%clk 0:02:59]} 2. c4 {[%clk 0:02:59.8]} 2...
c6 {[%clk 0:02:59.2]} 3. cxd5 {[%clk 0:02:57.1]} 3... cxd5 {[%clk 0:02:59.8]} 4.
Nc3 {[%clk 0:02:57.7]} 4... Nc6 {[%clk 0:03:00]} 5. Nf3 {[%clk 0:02:56.5]} 5...
Nf6 {[%clk 0:03:00]} 6. Bf4 {[%clk 0:02:57]} 6... a6 {[%clk 0:02:59.3]} 7. e3
{[%clk 0:02:30.6]} 7... Bf5 {[%clk 0:02:58.3]} 8. Bd3 {[%clk 0:02:29]} 8... Bxd3
{[%clk 0:02:56.9]} 9. Qxd3 {[%clk 0:02:29.9]} 9... e6 {[%clk 0:02:57.3]} 10. O-O
{[%clk 0:02:29.1]} 10... Bd6 {[%clk 0:02:56.9]} 11. Bxd6 {[%clk 0:02:29.2]}
11... Qxd6 {[%clk 0:02:57.8]} 12. a3 {[%clk 0:02:29.6]} 12... O-O {[%clk
0:02:57.1]} 13. Na4 {[%clk 0:02:27.8]} 13... Ne4 {[%clk 0:02:49.9]} 14. Nd2
{[%clk 0:02:25.1]} 14... f5 {[%clk 0:02:44]} 15. Rfc1 {[%clk 0:02:22.4]} 15...
Rf6 {[%clk 0:02:27.8]} 16. f3 {[%clk 0:01:19.6]} 16... Rh6 {[%clk 0:02:18.8]}
17. fxe4 {[%clk 0:00:22.4]} 17... Qxh2+ {[%clk 0:02:17.6]} 18. Kf2 {[%clk
0:00:23]} 18... fxe4 {[%clk 0:02:18]} 19. Nxe4 {[%clk 0:00:14.3]} 19... Rf8+
{[%clk 0:02:18]} 20. Ke1 {[%clk 0:00:12.7]} 20... Qxg2 {[%clk 0:02:04.4]} 21.
Qe2 {[%clk 0:00:05.4]} 21... Qxe4 {[%clk 0:01:46.5]} 22. Nc5 {[%clk 0:00:04.6]}
22... Qh4+ {[%clk 0:01:24.3]} 23. Kd1 {[%clk 0:00:04.9]} 23... Rf2 {[%clk
0:01:21.1]} 24. Qd3 {[%clk 0:00:04.1]} 24... Qh1+ {[%clk 0:01:20.3]} 0-1

[Event "Early-Titled-Tuesday-Blitz-May-07-2024"]
[Site "Chess.com"]
[Date "2024.05.07"]
[Round "2"]
[White "AsaHoffmann"]
[Black "Byniolus"]
[Result "0-1"]
[WhiteElo "2409"]
[BlackElo "2805"]
[TimeControl "180+1"]
[EndTime "8:18:31 PDT"]
[Termination "Byniolus won by checkmate"]

1. d4 {[%clk 0:02:47.7]} 1... d6 {[%clk 0:02:59.6]} 2. e4 {[%clk 0:02:47.1]}
2... Nf6 {[%clk 0:02:59.2]} 3. f3 {[%clk 0:02:47]} 3... Nbd7 {[%clk 0:02:58.6]}
4. Be3 {[%clk 0:02:44.4]} 4... e5 {[%clk 0:02:59.5]} 5. Ne2 {[%clk 0:02:44.1]}
5... Be7 {[%clk 0:02:59.6]} 6. Nbc3 {[%clk 0:02:43.8]} 6... O-O {[%clk
0:02:59.7]} 7. Qd2 {[%clk 0:02:43.8]} 7... c6 {[%clk 0:03:00.2]} 8. g4 {[%clk
0:02:42.3]} 8... b5 {[%clk 0:03:00]} 9. Ng3 {[%clk 0:02:42]} 9... Nb6 {[%clk
0:02:57.2]} 10. g5 {[%clk 0:02:35.1]} 10... Ne8 {[%clk 0:02:53.5]} 11. h4 {[%clk
0:02:34.7]} 11... Nc7 {[%clk 0:02:52.4]} 12. a3 {[%clk 0:02:27.6]} 12... a5
{[%clk 0:02:51.9]} 13. O-O-O {[%clk 0:02:15.8]} 13... b4 {[%clk 0:02:51.6]} 14.
Nb1 {[%clk 0:02:08.1]} 14... exd4 {[%clk 0:02:44.8]} 15. Bxd4 {[%clk 0:02:06.6]}
15... c5 {[%clk 0:02:45.3]} 16. Be3 {[%clk 0:02:03.9]} 16... d5 {[%clk
0:02:41.1]} 17. e5 {[%clk 0:01:59.6]} 17... d4 {[%clk 0:02:37.5]} 18. Bf2 {[%clk
0:01:58.2]} 18... Ncd5 {[%clk 0:02:19]} 19. f4 {[%clk 0:01:55.6]} 19... Na4
{[%clk 0:01:34.3]} 20. Bb5 {[%clk 0:01:39.2]} 20... Nac3 {[%clk 0:01:21.5]} 21.
bxc3 {[%clk 0:01:36.7]} 21... bxc3 {[%clk 0:01:22.4]} 22. Qd3 {[%clk 0:01:28.3]}
22... Nxf4 {[%clk 0:00:51.9]} 23. Qe4 {[%clk 0:01:25.7]} 23... Qb6 {[%clk
0:00:52.1]} 24. a4 {[%clk 0:01:21.7]} 24... Ba6 {[%clk 0:00:29.5]} 25. Nxc3
{[%clk 0:01:08.9]} 25... dxc3 {[%clk 0:00:26.9]} 26. Qc6 {[%clk 0:01:02.5]}
26... Qxc6 {[%clk 0:00:19.4]} 27. Bxc6 {[%clk 0:01:02]} 27... Rab8 {[%clk
0:00:20.3]} 28. Nf5 {[%clk 0:00:59.9]} 28... Ne2# {[%clk 0:00:19.5]} 0-1

[Event "Early-Titled-Tuesday-Blitz-May-07-2024"]
[Site "Chess.com"]
[Date "2024.05.07"]
[Round "2"]
[White "SharapovEvgeny"]
[Black "Heinza9"]
[Result "1-0"]
[WhiteElo "2629"]
[BlackElo "2353"]
[TimeControl "180+1"]
[EndTime "8:18:32 PDT"]
[Termination "SharapovEvgeny won by resignation"]

1. e4 {[%clk 0:03:00]} 1... e5 {[%clk 0:02:59.5]} 2. Nf3 {[%clk 0:02:59.9]} 2...
Nc6 {[%clk 0:02:59.6]} 3. Bb5 {[%clk 0:03:00]} 3... f5 {[%clk 0:02:59.6]} 4.
Bxc6 {[%clk 0:02:59.2]} 4... dxc6 {[%clk 0:02:59.4]} 5. Nc3 {[%clk 0:02:59]}
5... Bd6 {[%clk 0:02:57.5]} 6. Qe2 {[%clk 0:02:58.5]} 6... Qe7 {[%clk
0:02:56.1]} 7. d3 {[%clk 0:02:57.5]} 7... Nf6 {[%clk 0:02:55.6]} 8. Bd2 {[%clk
0:02:56.6]} 8... O-O {[%clk 0:02:55.4]} 9. O-O-O {[%clk 0:02:56.2]} 9... b5
{[%clk 0:02:47.7]} 10. exf5 {[%clk 0:02:53.5]} 10... Bxf5 {[%clk 0:02:46.8]} 11.
Ne4 {[%clk 0:02:52.7]} 11... Nd5 {[%clk 0:02:36.9]} 12. h3 {[%clk 0:02:48.4]}
12... Bxe4 {[%clk 0:02:32.4]} 13. dxe4 {[%clk 0:02:40.3]} 13... Nf4 {[%clk
0:02:30.8]} 14. Bxf4 {[%clk 0:02:39.5]} 14... Rxf4 {[%clk 0:02:30.8]} 15. Kb1
{[%clk 0:02:36.7]} 15... Raf8 {[%clk 0:02:29.4]} 16. Rd3 {[%clk 0:02:33.7]}
16... a5 {[%clk 0:02:13.2]} 17. Rf1 {[%clk 0:02:25]} 17... a4 {[%clk 0:02:12.4]}
18. Nh2 {[%clk 0:02:16.1]} 18... Qe6 {[%clk 0:02:10]} 19. Ng4 {[%clk 0:02:10.4]}
19... Qc4 {[%clk 0:02:07.2]} 20. f3 {[%clk 0:02:05.7]} 20... a3 {[%clk
0:01:53.7]} 21. b3 {[%clk 0:02:04.6]} 21... Qc5 {[%clk 0:01:43.7]} 22. Ne3
{[%clk 0:01:54.1]} 22... g6 {[%clk 0:01:35.4]} 23. Rfd1 {[%clk 0:01:53.1]} 23...
R4f7 {[%clk 0:01:28.8]} 24. Ng4 {[%clk 0:01:50.3]} 24... Kh8 {[%clk 0:01:15.1]}
25. Qe3 {[%clk 0:01:49.7]} 25... Re8 {[%clk 0:01:11.3]} 26. Qxc5 {[%clk
0:01:47.9]} 26... Bxc5 {[%clk 0:01:11.2]} 27. Rd8 {[%clk 0:01:42.7]} 27... Rff8
{[%clk 0:00:57.5]} 28. Rxe8 {[%clk 0:01:41.8]} 28... Rxe8 {[%clk 0:00:57.7]} 29.
Rd7 {[%clk 0:01:41.7]} 29... Bd6 {[%clk 0:00:51.9]} 30. Rxh7+ {[%clk 0:01:25.4]}
30... Kxh7 {[%clk 0:00:49.8]} 31. Nf6+ {[%clk 0:01:26]} 31... Kh6 {[%clk
0:00:45.8]} 32. Nxe8 {[%clk 0:01:25.8]} 32... Kg5 {[%clk 0:00:37.9]} 33. Nxd6
{[%clk 0:01:25.4]} 33... cxd6 {[%clk 0:00:38.3]} 34. g3 {[%clk 0:01:25.5]} 34...
d5 {[%clk 0:00:38.5]} 35. exd5 {[%clk 0:01:23.3]} 35... cxd5 {[%clk 0:00:38.5]}
36. Kc1 {[%clk 0:01:23.4]} 36... e4 {[%clk 0:00:39]} 37. fxe4 {[%clk 0:01:22.5]}
37... dxe4 {[%clk 0:00:39.1]} 38. Kd2 {[%clk 0:01:22.8]} 38... Kf5 {[%clk
0:00:34.1]} 39. c4 {[%clk 0:01:21.9]} 1-0

[Event "Early-Titled-Tuesday-Blitz-May-07-2024"]
[Site "Chess.com"]
[Date "2024.05.07"]
[Round "2"]
[White "Yeritsyaan"]
[Black "AccioChess"]
[Result "1-0"]
[WhiteElo "2713"]
[BlackElo "2435"]
[TimeControl "180+1"]
[EndTime "8:18:34 PDT"]
[Termination "Yeritsyaan won by resignation"]

1. Nf3 {[%clk 0:03:00.9]} 1... Nf6 {[%clk 0:02:56.7]} 2. g3 {[%clk 0:03:00.3]}
2... g6 {[%clk 0:02:56.5]} 3. Bg2 {[%clk 0:03:00.8]} 3... Bg7 {[%clk 0:02:57.4]}
4. O-O {[%clk 0:03:01.2]} 4... O-O {[%clk 0:02:58.3]} 5. d3 {[%clk 0:03:00.9]}
5... d5 {[%clk 0:02:57]} 6. Nbd2 {[%clk 0:03:00.7]} 6... c5 {[%clk 0:02:57.3]}
7. e4 {[%clk 0:03:00.6]} 7... Nc6 {[%clk 0:02:57.9]} 8. c3 {[%clk 0:02:59.2]}
8... Bg4 {[%clk 0:02:54.5]} 9. h3 {[%clk 0:02:58.8]} 9... Bxf3 {[%clk
0:02:54.7]} 10. Qxf3 {[%clk 0:02:57.8]} 10... e6 {[%clk 0:02:48.7]} 11. Qe2
{[%clk 0:02:55.8]} 11... b5 {[%clk 0:02:16.2]} 12. e5 {[%clk 0:02:46.9]} 12...
Nd7 {[%clk 0:02:15.9]} 13. f4 {[%clk 0:02:46.7]} 13... b4 {[%clk 0:02:13]} 14.
Nf3 {[%clk 0:02:43.1]} 14... bxc3 {[%clk 0:02:11.5]} 15. bxc3 {[%clk 0:02:43.7]}
15... Qa5 {[%clk 0:02:11.3]} 16. Bd2 {[%clk 0:02:42.4]} 16... Rab8 {[%clk
0:02:10.4]} 17. Be1 {[%clk 0:02:27.4]} 17... Qa3 {[%clk 0:02:01.3]} 18. Rf2
{[%clk 0:02:26.6]} 18... Rb6 {[%clk 0:01:57.7]} 19. d4 {[%clk 0:02:06.9]} 19...
Rfb8 {[%clk 0:01:57.4]} 20. g4 {[%clk 0:01:58.1]} 20... Rb2 {[%clk 0:01:55.9]}
21. Qf1 {[%clk 0:01:53.5]} 21... Rxf2 {[%clk 0:01:49.4]} 22. Qxf2 {[%clk
0:01:51.5]} 22... Rb2 {[%clk 0:01:48.6]} 23. Qh4 {[%clk 0:01:45.6]} 23... Rxa2
{[%clk 0:01:27.7]} 24. Rxa2 {[%clk 0:01:46.5]} 24... Qxa2 {[%clk 0:01:28]} 25.
f5 {[%clk 0:01:46]} 25... h6 {[%clk 0:00:48]} 26. Bd2 {[%clk 0:01:14.9]} 26...
cxd4 {[%clk 0:00:41.6]} 27. Bxh6 {[%clk 0:01:13.5]} 27... dxc3 {[%clk
0:00:31.7]} 28. Bxg7 {[%clk 0:01:13.3]} 28... Kxg7 {[%clk 0:00:32.3]} 29. f6+
{[%clk 0:01:12.3]} 29... Kg8 {[%clk 0:00:25]} 30. Qh6 {[%clk 0:01:09.2]} 1-0

[Event "Early-Titled-Tuesday-Blitz-May-07-2024"]
[Site "Chess.com"]
[Date "2024.05.07"]
[Round "2"]
[White "GMAkobianSTL"]
[Black "Bilan_Danila"]
[Result "1-0"]
[WhiteElo "2806"]
[BlackElo "2552"]
[TimeControl "180+1"]
[EndTime "8:18:36 PDT"]
[Termination "GMAkobianSTL won by resignation"]

1. d4 {[%clk 0:03:00.9]} 1... d5 {[%clk 0:02:53.8]} 2. c4 {[%clk 0:03:00.8]}
2... c6 {[%clk 0:02:53.4]} 3. cxd5 {[%clk 0:03:00.3]} 3... cxd5 {[%clk
0:02:53.6]} 4. Nf3 {[%clk 0:03:01.1]} 4... Nf6 {[%clk 0:02:53.4]} 5. Nc3 {[%clk
0:03:02]} 5... Nc6 {[%clk 0:02:53.2]} 6. Bf4 {[%clk 0:03:02.4]} 6... Bf5 {[%clk
0:02:53.1]} 7. e3 {[%clk 0:03:00.9]} 7... e6 {[%clk 0:02:53.1]} 8. Qb3 {[%clk
0:03:00.5]} 8... Qb6 {[%clk 0:02:24.9]} 9. Bb5 {[%clk 0:02:58]} 9... Be7 {[%clk
0:02:05.3]} 10. O-O {[%clk 0:02:56.2]} 10... O-O {[%clk 0:02:02.3]} 11. Na4
{[%clk 0:02:54.8]} 11... Qa5 {[%clk 0:01:49.1]} 12. Bxc6 {[%clk 0:02:54.1]}
12... bxc6 {[%clk 0:01:47.5]} 13. Rfc1 {[%clk 0:02:54.6]} 13... Rfc8 {[%clk
0:01:35]} 14. h3 {[%clk 0:02:54.4]} 14... h6 {[%clk 0:01:26.2]} 15. Ne5 {[%clk
0:02:46.7]} 15... c5 {[%clk 0:00:54.2]} 16. dxc5 {[%clk 0:02:31]} 16... Bxc5
{[%clk 0:00:54.2]} 17. Nxc5 {[%clk 0:02:30.5]} 17... Rxc5 {[%clk 0:00:55.1]} 18.
Nc6 {[%clk 0:02:28.2]} 18... Rxc1+ {[%clk 0:00:44.1]} 19. Rxc1 {[%clk
0:02:22.5]} 19... Qd2 {[%clk 0:00:19.9]} 20. Rd1 {[%clk 0:02:10.5]} 20... Qc2
{[%clk 0:00:17.1]} 21. Qxc2 {[%clk 0:01:57.5]} 21... Bxc2 {[%clk 0:00:18]} 22.
Rc1 {[%clk 0:01:54.9]} 22... Ba4 {[%clk 0:00:10.2]} 23. Ne5 {[%clk 0:01:53.5]}
23... Nd7 {[%clk 0:00:04.6]} 24. b3 {[%clk 0:01:50.3]} 24... Nxe5 {[%clk
0:00:04.7]} 25. Bxe5 {[%clk 0:01:50.2]} 25... Bb5 {[%clk 0:00:03.4]} 26. f4
{[%clk 0:01:48]} 26... a6 {[%clk 0:00:03.6]} 27. a4 {[%clk 0:01:46.1]} 27... Bd3
{[%clk 0:00:03.2]} 28. Kf2 {[%clk 0:01:43.6]} 28... Be4 {[%clk 0:00:03.7]} 29.
b4 {[%clk 0:01:41.1]} 29... Ra7 {[%clk 0:00:02.9]} 30. Rc8+ {[%clk 0:01:37.7]}
30... Kh7 {[%clk 0:00:03]} 31. Bd4 {[%clk 0:01:35.1]} 31... Rb7 {[%clk
0:00:02.8]} 32. b5 {[%clk 0:01:31.5]} 32... axb5 {[%clk 0:00:03]} 33. a5 {[%clk
0:01:31.8]} 33... b4 {[%clk 0:00:01.8]} 34. a6 {[%clk 0:01:32.1]} 34... Rb5
{[%clk 0:00:01.9]} 35. a7 {[%clk 0:01:32.2]} 35... Ra5 {[%clk 0:00:02.6]} 36.
a8=Q {[%clk 0:01:32.1]} 36... Rxa8 {[%clk 0:00:03.5]} 37. Rxa8 {[%clk 0:01:32]}
1-0

[Event "Early-Titled-Tuesday-Blitz-May-07-2024"]
[Site "Chess.com"]
[Date "2024.05.07"]
[Round "2"]
[White "EgorYakovlev"]
[Black "Marielchessy"]
[Result "1-0"]
[WhiteElo "2573"]
[BlackElo "2359"]
[TimeControl "180+1"]
[EndTime "8:18:39 PDT"]
[Termination "EgorYakovlev won by resignation"]

1. e4 {[%clk 0:03:00.9]} 1... c5 {[%clk 0:02:57.7]} 2. Nf3 {[%clk 0:03:00.5]}
2... d6 {[%clk 0:02:57.8]} 3. d4 {[%clk 0:03:00.1]} 3... cxd4 {[%clk 0:02:58.3]}
4. Nxd4 {[%clk 0:03:00.8]} 4... Nf6 {[%clk 0:02:58.7]} 5. Nc3 {[%clk 0:03:01.4]}
5... a6 {[%clk 0:02:58.6]} 6. Bg5 {[%clk 0:03:01.7]} 6... e6 {[%clk 0:02:58.8]}
7. f4 {[%clk 0:03:02]} 7... Be7 {[%clk 0:02:58.9]} 8. Qf3 {[%clk 0:03:01.5]}
8... Qc7 {[%clk 0:02:59.2]} 9. O-O-O {[%clk 0:03:01.3]} 9... Nbd7 {[%clk
0:02:59.4]} 10. g4 {[%clk 0:03:00.7]} 10... b5 {[%clk 0:02:59.6]} 11. Bxf6
{[%clk 0:03:00.5]} 11... Nxf6 {[%clk 0:02:59.8]} 12. g5 {[%clk 0:03:00.1]} 12...
Nd7 {[%clk 0:03:00]} 13. Bh3 {[%clk 0:02:54]} 13... Nb6 {[%clk 0:02:52.6]} 14.
f5 {[%clk 0:02:50.1]} 14... e5 {[%clk 0:02:52.4]} 15. Nb3 {[%clk 0:02:30.4]}
15... Bxg5+ {[%clk 0:02:51.4]} 16. Kb1 {[%clk 0:02:30.4]} 16... Bb7 {[%clk
0:02:47]} 17. Rhg1 {[%clk 0:02:21.7]} 17... Bf6 {[%clk 0:02:46.8]} 18. Bf1
{[%clk 0:02:15.4]} 18... b4 {[%clk 0:02:39]} 19. Nd5 {[%clk 0:02:03.1]} 19...
Bxd5 {[%clk 0:02:35.2]} 20. exd5 {[%clk 0:02:04]} 20... O-O {[%clk 0:02:33.9]}
21. Nd2 {[%clk 0:02:02.5]} 21... Rac8 {[%clk 0:02:30]} 22. Bd3 {[%clk
0:02:02.7]} 22... Kh8 {[%clk 0:02:06.4]} 23. Rg3 {[%clk 0:01:59.2]} 23... Qc5
{[%clk 0:01:48.6]} 24. Rh3 {[%clk 0:01:41]} 24... Qxd5 {[%clk 0:01:37.4]} 25.
Ne4 {[%clk 0:01:40.5]} 25... Nd7 {[%clk 0:00:51.6]} 26. Rg1 {[%clk 0:01:16.3]}
26... Qd4 {[%clk 0:00:46.5]} 27. Rg2 {[%clk 0:00:50.4]} 27... d5 {[%clk
0:00:45.6]} 28. Qh5 {[%clk 0:00:49.3]} 28... h6 {[%clk 0:00:35.7]} 29. Qxh6+
{[%clk 0:00:48.4]} 1-0

[Event "Early-Titled-Tuesday-Blitz-May-07-2024"]
[Site "Chess.com"]
[Date "2024.05.07"]
[Round "2"]
[White "Lady_Nika"]
[Black "PawnEatingZombie"]
[Result "1-0"]
[WhiteElo "2487"]
[BlackElo "2221"]
[TimeControl "180+1"]
[EndTime "8:18:39 PDT"]
[Termination "Lady_Nika won on time"]

1. g4 {[%clk 0:03:00.9]} 1... e5 {[%clk 0:02:58.5]} 2. Bg2 {[%clk 0:02:56.2]}
2... Ne7 {[%clk 0:02:58.7]} 3. b3 {[%clk 0:02:54.9]} 3... Ng6 {[%clk 0:02:58.8]}
4. e3 {[%clk 0:02:51.5]} 4... Nh4 {[%clk 0:02:57.7]} 5. Bf1 {[%clk 0:02:51.4]}
5... d5 {[%clk 0:02:50.2]} 6. h3 {[%clk 0:02:49]} 6... h5 {[%clk 0:02:36.3]} 7.
Be2 {[%clk 0:02:20.9]} 7... e4 {[%clk 0:02:34]} 8. Bb2 {[%clk 0:02:20]} 8...
hxg4 {[%clk 0:02:18.5]} 9. Bxg4 {[%clk 0:02:18.2]} 9... Bf5 {[%clk 0:01:44.9]}
10. Bxf5 {[%clk 0:02:16.4]} 10... Nxf5 {[%clk 0:01:44]} 11. Qg4 {[%clk
0:02:16.1]} 11... Qd7 {[%clk 0:01:40.6]} 12. Nc3 {[%clk 0:02:11.9]} 12... Nc6
{[%clk 0:01:35.3]} 13. O-O-O {[%clk 0:02:11]} 13... O-O-O {[%clk 0:01:35]} 14.
Nce2 {[%clk 0:02:09.4]} 14... Rh4 {[%clk 0:01:30.2]} 15. Qg2 {[%clk 0:02:07.2]}
15... d4 {[%clk 0:01:18.7]} 16. exd4 {[%clk 0:01:56.8]} 16... Ncxd4 {[%clk
0:01:09.3]} 17. f3 {[%clk 0:01:55.5]} 17... Nxc2 {[%clk 0:00:32]} 18. Nc3 {[%clk
0:01:28.7]} 18... Nb4 {[%clk 0:00:18.2]} 19. fxe4 {[%clk 0:01:23.9]} 19... Nd3+
{[%clk 0:00:14.4]} 20. Kb1 {[%clk 0:01:23]} 20... Nd4 {[%clk 0:00:12.3]} 21. Nf3
{[%clk 0:01:17.9]} 21... Nxf3 {[%clk 0:00:11.4]} 22. Qxf3 {[%clk 0:01:17.9]}
22... Rf4 {[%clk 0:00:09.9]} 23. Qg3 {[%clk 0:01:08]} 23... Nb4 {[%clk 0:00:06]}
24. d4 {[%clk 0:01:06]} 1-0

[Event "Early-Titled-Tuesday-Blitz-May-07-2024"]
[Site "Chess.com"]
[Date "2024.05.07"]
[Round "2"]
[White "pfalcon1949"]
[Black "Veleamater"]
[Result "0-1"]
[WhiteElo "1942"]
[BlackElo "2431"]
[TimeControl "180+1"]
[EndTime "8:18:39 PDT"]
[Termination "Veleamater won by resignation"]

1. e4 {[%clk 0:03:00.9]} 1... d6 {[%clk 0:03:00.9]} 2. d4 {[%clk 0:02:59.8]}
2... g6 {[%clk 0:03:01.8]} 3. Nc3 {[%clk 0:02:59.5]} 3... Bg7 {[%clk 0:03:01.5]}
4. f4 {[%clk 0:02:59.5]} 4... Nf6 {[%clk 0:03:01.1]} 5. Nf3 {[%clk 0:02:59.5]}
5... O-O {[%clk 0:03:00.4]} 6. Bd3 {[%clk 0:02:57.8]} 6... a6 {[%clk 0:02:59.9]}
7. O-O {[%clk 0:02:57.6]} 7... b5 {[%clk 0:03:00]} 8. a3 {[%clk 0:02:56.5]} 8...
Bb7 {[%clk 0:03:00.2]} 9. e5 {[%clk 0:02:53.5]} 9... Nfd7 {[%clk 0:02:59.8]} 10.
h4 {[%clk 0:02:48.5]} 10... c5 {[%clk 0:02:59.3]} 11. h5 {[%clk 0:02:47.3]}
11... cxd4 {[%clk 0:02:59]} 12. hxg6 {[%clk 0:02:43.8]} 12... fxg6 {[%clk
0:02:58.6]} 13. Ne4 {[%clk 0:02:16.8]} 13... dxe5 {[%clk 0:02:58.1]} 14. fxe5
{[%clk 0:02:16]} 14... Nxe5 {[%clk 0:02:53.4]} 15. Nxe5 {[%clk 0:02:13]} 15...
Rxf1+ {[%clk 0:02:52.6]} 16. Qxf1 {[%clk 0:02:12.8]} 16... Bxe5 {[%clk
0:02:52.3]} 17. Bh6 {[%clk 0:02:11.3]} 17... Nd7 {[%clk 0:02:33.7]} 18. Ng5
{[%clk 0:02:00.3]} 18... Nf6 {[%clk 0:02:32.9]} 19. Re1 {[%clk 0:01:57.2]} 19...
Qd6 {[%clk 0:02:24.6]} 20. Ne4 {[%clk 0:01:15.4]} 20... Nxe4 {[%clk 0:02:16.9]}
21. Bxe4 {[%clk 0:01:15.3]} 21... Bxe4 {[%clk 0:02:15.8]} 22. Rxe4 {[%clk
0:01:14.3]} 22... Bf6 {[%clk 0:02:15.4]} 23. Qf3 {[%clk 0:01:09.9]} 23... Rc8
{[%clk 0:02:13.7]} 24. Qh3 {[%clk 0:01:00.7]} 24... Rxc2 {[%clk 0:02:07.5]} 25.
Qe6+ {[%clk 0:00:59.1]} 25... Qxe6 {[%clk 0:02:07.3]} 26. Rxe6 {[%clk 0:01:00]}
26... Rxb2 {[%clk 0:01:59.5]} 27. Rxa6 {[%clk 0:00:59.3]} 27... d3 {[%clk
0:01:58]} 28. Ra8+ {[%clk 0:00:47.8]} 28... Kf7 {[%clk 0:01:57.5]} 29. Rd8
{[%clk 0:00:48.7]} 29... Rb3 {[%clk 0:01:55.8]} 30. Kf2 {[%clk 0:00:45.2]} 30...
Rxa3 {[%clk 0:01:55.7]} 31. Ke3 {[%clk 0:00:43.5]} 31... d2+ {[%clk 0:01:51.5]}
32. Kxd2 {[%clk 0:00:40.7]} 32... Ra2+ {[%clk 0:01:51.7]} 33. Ke3 {[%clk
0:00:38.5]} 33... Rxg2 {[%clk 0:01:52.5]} 34. Rb8 {[%clk 0:00:36.9]} 34... Rh2
{[%clk 0:01:52.2]} 35. Bf4 {[%clk 0:00:35.8]} 35... Rh5 {[%clk 0:01:51.9]} 36.
Ke4 {[%clk 0:00:35.3]} 36... Rf5 {[%clk 0:01:51.5]} 37. Rb7 {[%clk 0:00:34.7]}
37... h5 {[%clk 0:01:50]} 38. Rb8 {[%clk 0:00:20.9]} 38... Rc5 {[%clk 0:01:47]}
39. Bh6 {[%clk 0:00:19.1]} 39... h4 {[%clk 0:01:44.4]} 40. Rf8+ {[%clk
0:00:16.7]} 40... Ke6 {[%clk 0:01:44.2]} 41. Rg8 {[%clk 0:00:17.2]} 41... h3
{[%clk 0:01:39.6]} 42. Rxg6 {[%clk 0:00:16.8]} 42... h2 {[%clk 0:01:36.8]} 0-1